[Event "50th La Roda Open 2024"]
[Site "La Roda"]
[Date "2024.03.28"]
[Round "2.7"]
[White "Peralta, Fernando"]
[Black "Jimenez Villena, Francisco Jose"]
[Result "1-0"]
[ECO "E48"]
[WhiteElo "2580"]
[BlackElo "2074"]
[Annotator "TA"]
[PlyCount "93"]
[EventDate "2024.03.27"]
[EventType "swiss"]
[EventCountry "ESP"]
[SourceTitle "playchess.com"]
[Source "ChessBase"]
[SourceQuality "1"]
[TimeControl "5400+30"]

{[%evp 11,93,0,0,-2,0,-2,-20,-21,-18,-37,-12,-8,32,36,43,28,26,14,64,52,60,47,81,51,79,75,84,85,78,74,91,95,96,104,99,83,84,85,93,98,98,96,97,86,67,88,76,62,67,63,78,52,100,110,108,113,110,110,139,85,103,119,91,85,139,149,206,212,204,180,236,205,183,197,254,223,221,216,245,256,245,210,224,199]} 1. d4 {[%emt 0:00:04]} Nf6 {[%emt 0:00:15]} 2. c4 {[%emt 0:00:05]} e6 {[%emt 0:00:24]} 3. Nc3 {[%emt 0:00:15]} Bb4 {[%emt 0:00:20]} 4. e3 {[%emt 0:00:09]} O-O {[%emt 0:00:22]} 5. Bd3 {[%emt 0:00:33]} d5 {[%emt 0:00:45]} 6. cxd5 {[%emt 0:01:07]} exd5 {[%emt 0:00:36]} 7. a3 {[%emt 0:00:10]} Bd6 {[%emt 0:02:32]} 8. Qc2 {[%emt 0:00:14]} c6 {[%emt 0:08:17][%cal Bc7c6,Bc6c5][%mdl 32]} 9. Nge2 {[%emt 0:00:17] The position is equal.} Re8 {[%emt 0:01:47]} 10. Bd2 {[%emt 0:04:08]} Nbd7 {[%emt 0:00:21]} 11. O-O {[%emt 0:00:32]} a5 {[%emt 0:16:08]} 12. f3 {[%emt 0:04:13]} c5 {[%emt 0:13:24]} 13. Rad1 {[%emt 0:03:31]} b6 {[%emt 0:14:40]} 14. Qc1 {[%emt 0:02:13]} Ba6 {[%emt 0:01:42]} (14... Bb7 $11) 15. Bxa6 $14 {[%emt 0:03:01]} Rxa6 {[%emt 0:00:08]} 16. Nb5 {[%emt 0:01:56]} Bf8 {[%emt 0:01:36]} 17. Be1 {[%emt 0:03:05]} Ra8 {[%emt 0:06:49]} 18. Nec3 {[%emt 0:02:02]} Rc8 {[%emt 0:04:07]} 19. Qd2 {[%emt 0:01:45]} cxd4 {[%emt 0:05:40]} 20. exd4 {[%emt 0:00:16]} Nb8 {[%emt 0:00:45]} 21. Bh4 {[%emt 0:05:13]} Rc6 {[%emt 0:02:24]} 22. Rfe1 {[%emt 0:05:13]} Rce6 {[%emt 0:01:49] Repels Re5} 23. Rxe6 {[%emt 0:05:52]} Rxe6 {[%emt 0:00:17]} 24. Bxf6 {[%emt 0:02:37]} Rxf6 {[%emt 0:03:51]} 25. Qg5 {[%emt 0:00:16]} Rd6 {[%emt 0:00:11][%cal Bf6d6,Bd6d8,Bd8e8][%mdl 32]} 26. Qxd8 {[%emt 0:10:36]} Rxd8 {[%emt 0:00:02]} 27. Na4 {[%emt 0:00:11]} Nc6 {[%emt 0:06:10]} 28. Rc1 {[%emt 0:01:05]} (28. Nxb6 $2 {is the wrong capture.} Rb8 29. Nxd5 Rxb5 $19) 28... Ne7 {[%emt 0:00:26]} 29. Rc7 {[%emt 0:00:51][%cal Oc7b7] White is more active.} (29. Nxb6 $2 {loses.} Rb8 30. Nxd5 Nxd5 $19 (30... Rxb5 $2 31. Nxe7+ Bxe7 32. Rc8+ Bf8 33. Ra8 $19)) 29... Nf5 {[%emt 0:06:28]} 30. Rc6 {[%emt 0:07:16][%cal Og1f2]} Re8 {[%emt 0:00:57]} 31. Kf2 {[%emt 0:05:19][%cal Og2g4] Repels Re2+} ({Reject} 31. Rxb6 Re1+ 32. Kf2 Rc1 $15) 31... Ne3 {[%emt 0:01:46]} (31... h5 $14) 32. Nxb6 $16 {[%emt 0:09:00]} Nd1+ {[%emt 0:00:30]} 33. Kg3 {[%emt 0:00:07]} Nxb2 {[%emt 0:00:43]} 34. Nxd5 {[%emt 0:00:22]} Rd8 {[%emt 0:00:12]} 35. Ndc3 {[%emt 0:01:03]} (35. Ndc7 $142) 35... f5 {[%emt 0:00:55]} 36. Kf4 {[%emt 0:05:33]} g6 {[%emt 0:00:29]} 37. Ke3 {[%emt 0:00:05] Repels Nd3} Bh6+ {[%emt 0:00:39]} (37... Rb8 $142) 38. f4 {[%emt 0:00:05]} Re8+ {[%emt 0:00:05]} (38... Rb8 $16 39. Nc7 Bf8) 39. Kd2 $18 {[%emt 0:00:18] Hoping for d5.} Rb8 {[%emt 0:00:31]} 40. g3 {[%emt 0:04:13]} Bf8 {[%emt 0:00:32]} (40... Bg7 $142 41. d5 Na4) 41. Rc7 {[%emt 0:11:47]} Na4 {[%emt 0:00:33]} 42. Nd5 {[%emt 0:00:16]} Bg7 {[%emt 0:00:28] Dodges Nf6+} (42... Kh8 $142) 43. Ne7+ {[%emt 0:00:44]} Kf8 {[%emt 0:00:53]} 44. Rc8+ {[%emt 0:00:10]} Rxc8 {[%emt 0:00:01]} 45. Nxc8 {[%emt 0:00:03] Kc2 would now be deadly.} Ke8 {[%emt 0:00:23] [#]} 46. Kc2 $1 {[%emt 0:02:46] And now Kb3 would win.} Kd7 {[%emt 0:00:56]} 47. Kb3 $1 {[%emt 0:00:25] Weighted Error Value: White=0.05 (flawless) /Black=0.16 (very precise) .  Mistake:       	White=1     	Black=6      Inaccurate:     	White=1     	Black=3      OK:         	White=23    	Black=13     Best:        	White=3     	Black=5      Strong:       	White=2     	---} 1-0

[Event "50th La Roda Open 2024"]
[Site "La Roda"]
[Date "2024.03.28"]
[Round "2.8"]
[White "Haering Hijon, Javier"]
[Black "Sonis, Francesco"]
[Result "0-1"]
[ECO "A30"]
[WhiteElo "2045"]
[BlackElo "2562"]
[Annotator "TA"]
[PlyCount "102"]
[EventDate "2024.03.27"]
[EventType "swiss"]
[EventCountry "ESP"]
[SourceTitle "playchess.com"]
[Source "ChessBase"]
[SourceQuality "1"]
[TimeControl "5400+30"]

{[%evp 9,102,-3,6,0,-1,-48,-37,-50,-45,-42,-43,-62,-59,-60,-56,-66,-17,-52,-60,-58,-38,-57,-43,-98,-62,-77,-57,-54,-48,-52,-46,-62,-56,-59,-40,-75,-22,-20,-13,-22,-7,-10,-17,-36,0,0,10,7,32,-27,-44,-51,-43,-91,-91,-64,-77,-124,-47,-48,-25,-88,-60,-142,-130,-126,-35,-325,-305,-350,-297,-374,-390,-616,-623,-625,-625,-620,-614,-598,-598,-820,-820,-812,-812,-980,-960,-904,-802,-878,-716,-758,-749,-895,-886]} 1. Nf3 {[%emt 0:00:03]} c5 {[%emt 0:00:12]} 2. c4 {[%emt 0:00:45]} Nc6 {[%emt 0:00:08]} 3. b3 {[%emt 0:00:18]} e5 {[%emt 0:01:08]} 4. Nc3 {[%emt 0:00:10]} g6 {[%emt 0:00:15]} 5. Bb2 {[%emt 0:01:41]} Bg7 {[%emt 0:00:06]} 6. d3 {[%emt 0:01:09]} Nge7 {[%emt 0:00:05]} 7. e3 {[%emt 0:00:36]} (7. g3 $11) 7... O-O {[%emt 0:00:12]} 8. Be2 {[%emt 0:00:05] Schwarz steht etwas besser.} d5 {[%emt 0:00:04]} 9. cxd5 {[%emt 0:00:40]} Nxd5 {[%emt 0:00:04][%cal Oe5e4]} 10. Qd2 {[%emt 0:03:23]} Nc7 {[%emt 0:00:07]} 11. O-O {[%emt 0:00:42]} b6 {[%emt 0:00:15]} 12. Rfd1 {[%emt 0:03:03]} Qd7 {[%emt 0:04:43]} (12... Bb7 $15 {scheint genauer.}) 13. Rac1 {[%emt 0:03:03]} Bb7 {[%emt 0:01:51]} 14. Qc2 {[%emt 0:01:02]} Rfd8 {[%emt 0:01:40]} 15. Qb1 {[%emt 0:01:09]} Qe7 {[%emt 0:01:02]} 16. Qa1 {[%emt 0:02:12]} (16. a3 $15) 16... Rd7 {[%emt 0:00:26]} 17. Ne4 {[%emt 0:06:06]} Rad8 {[%emt 0:01:20]} 18. Ned2 {[%emt 0:04:36]} f6 {[%emt 0:18:29]} 19. a3 {[%emt 0:07:30]} Nd5 {[%emt 0:03:18]} 20. Ne1 {[%emt 0:08:52]} f5 {[%emt 0:04:00]} 21. Nc4 {[%emt 0:10:27]} Re8 {[%emt 0:11:11]} (21... b5 $5 22. Nd2 h5 $15) 22. Bf1 {[%emt 0:01:48]} f4 {[%emt 0:05:05]} (22... b5 $17 23. Nd2 a6) 23. e4 $11 {[%emt 0:00:53]} Nc7 {[%emt 0:00:41]} 24. b4 {[%emt 0:06:02]} Nb5 {[%emt 0:13:57]} 25. bxc5 {[%emt 0:03:09]} bxc5 {[%emt 0:00:04]} 26. a4 {[%emt 0:05:26]} Nc7 {[%emt 0:01:03][%cal Bb5c7,Bc7a6,Ba6b4][%mdl 32]} 27. Ba3 {[%emt 0:04:16]} Na6 {[%emt 0:00:04]} 28. Qc3 {[%emt 0:00:27]} Nab4 {[%emt 0:01:05]} 29. Rb1 {[%emt 0:02:48]} (29. Nd2 $1 $14) 29... Bf8 {[%emt 0:00:41]} 30. Nc2 {[%emt 0:06:08][%cal Oc4a5]} Qe6 {[%emt 0:01:03][%cal Of4f3]} 31. Na1 {[%emt 0:02:12]} (31. Nd2 $15 {verdient Beachtung.}) 31... Ba6 {[%emt 0:03:29]} 32. Nb3 {[%emt 0:00:12]} Red8 {[%emt 0:01:41] ...Bxc4 wäre nun fies.} 33. Be2 {[%emt 0:01:44]} ({Besser ist} 33. Rd2) 33... Nd4 {[%emt 0:07:15]} ({Vorzuziehen ist} 33... g5 $17 34. Nca5 Nxa5 (34... Bxd3 35. Nxc6 Qxc6 36. Bxb4 $15) 35. Nxa5 g4 (35... Bxd3 36. Nb7 $11) (35... Nxd3 36. Rd2 $17)) 34. Nxd4 $15 {[%emt 0:01:48]} Rxd4 {[%emt 0:01:17]} 35. Nb2 {[%emt 0:06:27]} (35. f3 $11) 35... Rb8 {[%emt 0:01:35]} 36. h3 {[%emt 0:01:33]} (36. Nc4 $15) 36... Na2 $1 $17 {[%emt 0:01:58]} 37. Qa5 {[%emt 0:00:39][%cal Ob2c4]} Rb3 $1 $36 {[%emt 0:02:53][%mdl 2048] Schwarz drückt.} 38. Bxc5 {[%emt 0:01:31][%mdl 8192] Danach ist Weiß chancenlos.} (38. Bg4 $15 Qc6 39. Nc4 Bxc4 (39... Rbxd3 $2 40. Rxd3 Rxd3 41. Nxe5 $18) 40. dxc4 Rxd1+ (40... Rxa3 41. Rxd4 exd4 42. Rb8 $16) 41. Rxd1) 38... Bxc5 $19 {[%emt 0:01:03]} 39. Qxc5 {[%emt 0:00:02][%cal Ob2c4] Droht stark Nc4!} Nc3 $1 {[%emt 0:00:06]} 40. Bg4 {[%emt 0:00:20] [#]} Qd6 {[%emt 0:00:07]} 41. Qxa7 {[%emt 0:03:02]} (41. Qxd6 $142 Rxd6 42. Rbc1 Nxd1 43. Nxd1) 41... Nxb1 {[%emt 0:00:12] Schwarz steht klar auf Gewinn.} 42. Rxb1 {[%emt 0:00:27]} Rb7 {[%emt 0:00:09] Aktives Gegenspiel!} (42... Bxd3 $2 43. Rc1 Ba6 (43... Rxb2 44. Rc8+) 44. Rc7 $18) 43. Qa8+ {[%emt 0:00:47]} Rb8 {[%emt 0:00:04]} 44. Qa7 {[%emt 0:00:38] [#]} Rdb4 $1 {[%emt 0:00:03][%cal Ob4b7] Weiss muss nun ...R4b7! beachten.} (44... Bxd3 $2 {ist das falsche Schlagen.} 45. Be6+ Kh8 46. Rc1 Bxe4 (46... Rxb2 47. Qf7 Qd8 48. Rc7 Rb1+ 49. Kh2) 47. Rc7 $18) 45. Rc1 {[%emt 0:00:51]} Rxb2 {[%emt 0:00:55]} 46. Rc7 {[%emt 0:01:44]} R2b7 {[%emt 0:00:04]} (46... Bxd3 47. Rg7+ (47. Rxh7 R2b7 $18) 47... Kh8 48. Rxh7+ Kg8 49. Qg7#) 47. Rxb7 {[%emt 0:00:08]} Rxb7 {[%emt 0:00:03]} 48. Qa8+ {[%emt 0:00:09]} Rb8 {[%emt 0:00:05]} 49. Qa7 {[%emt 0:01:01]} Bxd3 {[%emt 0:00:24]} 50. Be6+ {[%emt 0:00:54]} Kh8 {[%emt 0:00:04] Und ...Rb1+ würde nun gewinnen.} 51. Qf7 {[%emt 0:00:12]} Rf8 {[%emt 0:00:04] Gewichteter Fehlerwert: Weiß=0.54/Schwarz=0.19 (sehr präzise) .  Verlustzug:     	Weiß=1     	---        Fehler:       	Weiß=8     	Schwarz=3     Ungenau:       	Weiß=2     	Schwarz=3     OK:         	Weiß=7     	Schwarz=7     Bester:       	Weiß=3     	---        Stark:        	---       	Schwarz=3} ({Nicht} 51... Bxe4 52. Qf6#) 0-1

[Event "50th La Roda Open 2024"]
[Site "La Roda"]
[Date "2024.03.28"]
[Round "2.9"]
[White "Siddharth, Jagadeesh"]
[Black "Del Rio Perezagua, Mario"]
[Result "1-0"]
[ECO "B90"]
[WhiteElo "2490"]
[BlackElo "2070"]
[Annotator "TA"]
[PlyCount "77"]
[EventDate "2024.03.27"]
[EventType "swiss"]
[EventCountry "ESP"]
[SourceTitle "playchess.com"]
[Source "ChessBase"]
[SourceQuality "1"]
[TimeControl "5400+30"]

{[%evp 15,77,0,25,10,52,31,45,42,24,43,53,24,14,-33,-43,-22,-30,-21,-21,-6,-31,-31,-22,-20,-30,-55,-22,-83,-26,-24,-15,-14,0,-19,0,0,0,-214,0,0,0,0,0,0,0,0,0,0,0,0,0,0,118,110,110,-151,-143,-147,-131,-129,506,506,478,484]} 1. e4 {[%emt 0:00:20]} c5 {[%emt 0:00:21]} 2. Nf3 {[%emt 0:00:07]} d6 {[%emt 0:00:05]} 3. d4 {[%emt 0:00:09]} cxd4 {[%emt 0:00:05]} 4. Nxd4 {[%emt 0:00:06]} Nf6 {[%emt 0:00:10]} 5. Nc3 {[%emt 0:00:06]} a6 {[%emt 0:00:11]} 6. Be3 {[%emt 0:00:06]} e5 {[%emt 0:00:08]} 7. Nf3 {[%emt 0:00:06]} Be7 {[%emt 0:01:42]} 8. Bc4 {[%emt 0:00:10]} Be6 {[%emt 0:01:25]} 9. Bb3 {[%emt 0:00:09]} h6 {[%emt 0:04:42]} 10. Nh4 {[%emt 0:02:52]} O-O {[%emt 0:10:43]} 11. Nf5 {[%emt 0:01:30] White is slightly better.} Bxf5 {[%emt 0:16:28]} 12. exf5 {[%emt 0:00:03]} Nbd7 {[%emt 0:00:07]} 13. g4 {[%emt 0:05:32]} Nc5 {[%emt 0:12:11]} 14. h4 {[%emt 0:02:26]} (14. g5 $11 hxg5 15. Bxg5) 14... Nxb3 $15 {[%emt 0:02:54]} 15. axb3 {[%emt 0:05:46]} d5 {[%emt 0:00:05]} 16. g5 {[%emt 0:02:24]} d4 $1 {[%emt 0:02:15]} 17. gxf6 {[%emt 0:00:49]} Bxf6 {[%emt 0:00:14]} 18. Ne4 {[%emt 0:05:35]} dxe3 {[%emt 0:00:27]} 19. fxe3 {[%emt 0:00:05]} Qb6 {[%emt 0:11:20]} 20. Kf2 {[%emt 0:04:11]} Rac8 {[%emt 0:02:03]} 21. Ra4 {[%emt 0:02:05]} (21. Rc1 $11) 21... Rfd8 {[%emt 0:02:10]} (21... Be7 $1 $17) 22. Qe2 $11 {[%emt 0:00:23]} Rd7 {[%emt 0:03:09]} 23. Rc4 {[%emt 0:03:31]} Rcd8 {[%emt 0:03:41]} 24. Qe1 {[%emt 0:02:55]} Rd5 {[%emt 0:02:24]} 25. Qc3 {[%emt 0:04:53]} Be7 {[%emt 0:02:17] aiming for ...g6.} 26. Kf3 $2 {[%emt 0:01:26]} (26. Rc8 $11) 26... a5 $2 {[%emt 0:01:19]} (26... g6 $1 $19 {[%cal Rg6f5]} 27. Rg1 Kf8 (27... Bxh4 28. Rb4 $15) 28. fxg6 Qe6 (28... fxg6 29. Kg3 $15)) 27. Rc7 {[%emt 0:03:21]} Bb4 {[%emt 0:02:38]} 28. Qc4 {[%emt 0:00:14]} R5d7 {[%emt 0:00:18]} 29. Rxd7 {[%emt 0:02:47]} (29. Rd1 Rxc7 30. Rxd8+ Kh7) 29... Rxd7 {[%emt 0:00:07]} 30. Rg1 {[%emt 0:00:46] Threatens to win with f6.} Be7 {[%emt 0:01:22]} 31. Rg6 {[%emt 0:04:20]} Qd8 {[%emt 0:10:12]} 32. f6 {[%emt 0:03:57] Really sharp!} Bf8 {[%emt 0:00:05]} 33. fxg7 {[%emt 0:06:38]} Be7 {[%emt 0:00:05] Repels Nf6+} (33... Bxg7 $11 {keeps the balance.} 34. Rg1 Rc7) 34. Rxh6 $40 {[%emt 0:00:56][%mdl 128] White goes for the king.} Kxg7 {[%emt 0:00:29] [#]} 35. Ng3 $2 {[%emt 0:12:03][%mdl 8192] White is more active.} Kxh6 $17 {[%emt 0:08:43]} 36. Nf5+ {[%emt 0:12:23]} Kg6 {[%emt 0:00:15]} 37. Qg4+ {[%emt 0:01:25] [#]} Kf6 $2 {[%emt 0:00:06][%mdl 8192] [#]} (37... Bg5 $1 $17 {[%cal Od7c7] stays on course. ...Rc7! would now be deadly.} 38. hxg5 Rd2 (38... Qxg5 39. Nh4+ Kh6 40. Qxd7 $16)) 38. Nh6 $1 $18 {[%emt 0:00:16]} e4+ {[%emt 0:00:57]} 39. Kxe4 {[%emt 0:00:44] Weighted Error Value: White=0.27 (precise) /Black=0.34.  Loses game:     	White=1     	Black=1      Missed win:     	---       	Black=1      Mistake:       	White=3     	Black=2      Inaccurate:     	White=1     	Black=2      OK:         	White=8     	Black=10     Best:        	White=7     	Black=4      Strong:       	White=1     	Black=1} 1-0

[Event "50th La Roda Open 2024"]
[Site "La Roda"]
[Date "2024.03.28"]
[Round "2.10"]
[White "Hapala, Elisabeth"]
[Black "Elias Reyes, Jorge Roberto"]
[Result "0-1"]
[ECO "B90"]
[WhiteElo "2015"]
[BlackElo "2473"]
[Annotator "TA"]
[PlyCount "102"]
[EventDate "2024.03.27"]
[EventType "swiss"]
[EventCountry "ESP"]
[SourceTitle "playchess.com"]
[Source "ChessBase"]
[SourceQuality "1"]
[TimeControl "5400+30"]

{[%evp 12,101,26,13,0,0,9,6,27,15,34,12,4,30,2,1,12,6,15,29,9,-107,-113,-104,-108,-184,-178,-191,-175,-156,-93,-82,-88,-89,-85,-66,-75,-82,-51,-113,-105,-116,-125,-114,-87,-82,0,-125,-115,-121,-120,-120,-127,-96,-108,-116,-122,-114,-117,-153,-70,-70,-70,-243,-243,-293,-273,-285,-287,-283,-39,-39,-39,-39,-29,-40,0,0,0,-4,-4,-8,-8,-29990,-29991,-29991,-29992,-29997,-29998,-29998,-29999,-29999]} 1. e4 {[%emt 0:00:01]} c5 {[%emt 0:01:54]} 2. Nf3 {[%emt 0:00:05][%cal Bg1f3,Bf3d4,Bd4b3][%mdl 32]} d6 {[%emt 0:00:04]} 3. d4 {[%emt 0:00:04]} cxd4 {[%emt 0:00:03]} 4. Nxd4 {[%emt 0:00:05]} Nf6 {[%emt 0:00:04]} 5. Nc3 {[%emt 0:00:05]} a6 {[%emt 0:00:03]} 6. h3 {[%emt 0:00:11]} e5 {[%emt 0:00:24]} 7. Nb3 {[%emt 0:00:16]} Be7 {[%emt 0:00:28]} 8. g4 {[%emt 0:00:24]} h6 {[%emt 0:00:09]} 9. Be3 {[%emt 0:00:18]} b5 {[%emt 0:00:03] Die Stellung ist ausgeglichen.} 10. a4 {[%emt 0:00:40]} bxa4 {[%emt 0:00:07]} 11. Rxa4 {[%emt 0:00:07]} Bd7 {[%emt 0:00:04] Verhindert Bb5.} 12. Ra1 {[%emt 0:00:35]} Nc6 {[%emt 0:00:06]} 13. Nd5 {[%emt 0:00:51]} O-O {[%emt 0:00:10]} 14. Bg2 {[%emt 0:00:59]} (14. Bxa6 Nxd5 (14... Nxe4 15. O-O $15) 15. exd5 Nb4 $17) 14... Nxd5 {[%emt 0:00:33]} 15. exd5 {[%emt 0:08:46]} Nd4 {[%emt 0:00:02]} (15... Nb4 $6 16. c3 $16) 16. c3 {[%emt 0:02:18]} (16. Na5 $11) 16... Nxb3 $17 {[%emt 0:03:05]} 17. Qxb3 {[%emt 0:00:04]} f5 {[%emt 0:00:27]} 18. Qc2 {[%emt 0:27:11]} (18. gxf5 $17 Rb8 (18... Rxf5 19. c4 $15) 19. Qc2) 18... Bg5 $19 {[%emt 0:10:12]} 19. Bxg5 {[%emt 0:24:11]} Qxg5 {[%emt 0:00:50]} 20. Qd2 {[%emt 0:00:22]} Qxd2+ {[%emt 0:01:15]} (20... fxg4 21. Qxg5 hxg5 22. hxg4 $17) (20... Qg6 $142 21. Qe3 a5 (21... fxg4 22. Be4 $19)) 21. Kxd2 $17 {[%emt 0:00:06]} fxg4 {[%emt 0:00:09]} 22. Ke3 {[%emt 0:00:04]} a5 {[%emt 0:20:32][%cal Ba6a5,Ba5a4][%mdl 32]} 23. hxg4 {[%emt 0:00:46]} Bxg4 {[%emt 0:01:42]} 24. Be4 {[%emt 0:01:06]} Bd7 {[%emt 0:04:40]} 25. Ra2 {[%emt 0:04:15]} ({Günstiger ist} 25. b4 $15) 25... a4 {[%emt 0:01:36]} 26. Rha1 {[%emt 0:04:56][%cal Ob2b3]} Rab8 {[%emt 0:02:24]} 27. Bc2 {[%emt 0:05:37]} Bg4 {[%emt 0:04:41]} 28. Be4 {[%emt 0:03:26] Verhindert Rf3+} Bd7 {[%emt 0:02:49]} 29. Bc2 {[%emt 0:01:05]} Bb5 {[%emt 0:03:08]} 30. Bxa4 {[%emt 0:07:37]} Bc4 {[%emt 0:00:14][%csl LRa2,LRd5]} 31. b3 {[%emt 0:00:05]} Bxb3 {[%emt 0:04:23] Schwarz steht aktiver.} (31... Bxd5 32. c4 Rf3+ 33. Ke2 $17) 32. Bxb3 {[%emt 0:00:23]} Rxb3 {[%emt 0:00:02]} 33. Ra3 {[%emt 0:00:35]} Rxa3 {[%emt 0:01:15]} 34. Rxa3 {[%emt 0:00:03][%mdl 4096] Endspiel. KR-KR} h5 $1 {[%emt 0:00:45]} 35. c4 {[%emt 0:02:43][%cal Oc4c5]} Rf4 {[%emt 0:04:42]} (35... h4 $17 36. c5 dxc5) 36. Ra6 $15 {[%emt 0:02:29]} Rf6 $1 {[%emt 0:07:58]} 37. Ke4 $2 {[%emt 0:00:27] [#]} (37. Ra5 $15) 37... h4 $1 $19 {[%emt 0:03:25]} (37... Rxf2 38. Rxd6 h4 (38... Rf4+ 39. Kxe5 Rxc4 40. Rc6 $11) 39. Rb6 $11 (39. Kxe5 h3 $15)) 38. c5 {[%emt 0:00:29]} Rf4+ {[%emt 0:04:48]} (38... Rxf2 39. cxd6 (39. Rxd6 h3 $11) 39... Kf7 40. Ra8 $16) (38... dxc5 39. d6 Kf7 (39... Rxf2 $2 40. d7 $18) 40. Kxe5 $11) 39. Ke3 {[%emt 0:00:01]} dxc5 {[%emt 0:01:01]} 40. Re6 {[%emt 0:00:23][%cal Od5d6] [#]} h3 $2 {[%emt 0:03:53]} ({Besser ist} 40... Kf7 $1 $19 41. Rxe5 Rf6) 41. Rxe5 $15 {[%emt 0:00:07]} Rh4 {[%emt 0:02:36]} 42. d6 {[%emt 0:00:17]} h2 {[%emt 0:06:34]} 43. d7 $1 {[%emt 0:00:08]} h1=Q {[%emt 0:03:03]} (43... h1=R $2 {ist das falsche Schlagen.} 44. d8=Q+ (44. d8=B $2 Re1+ 45. Kf3 Rxe5 $19) 44... Kh7 45. Qd3+ (45. Rxc5 Rh6 $18) 45... g6 46. Ke2 (46. Rxc5 R4h3+ 47. f3 Re1+ 48. Kf2 Re7 49. Kg2 Rh6 50. Qd8 Rg7) 46... Rf4 47. Re7+ (47. Rxc5 Rh2 $18) 47... Kh6 48. Qe3 $18) 44. d8=Q+ $11 {[%emt 0:00:12] KQR-KQR} Kh7 {[%emt 0:00:07]} 45. Qd3+ {[%emt 0:00:53]} g6 {[%emt 0:00:36]} 46. Qd7+ {[%emt 0:04:06]} Kh6 {[%emt 0:00:02] ( -> ...Qe1+)} 47. Qe7 $2 {[%emt 0:01:36][%mdl 8192]} (47. Re7 $11 Qc1+ 48. Qd2 Rh3+ 49. Ke2+ Qxd2+ 50. Kxd2) 47... Qe1+ {[%emt 0:01:50] Schwarz setzt Matt.} 48. Kf3 {[%emt 0:00:17]} Qd1+ {[%emt 0:00:10]} 49. Ke3 {[%emt 0:00:50]} Rh3+ {[%emt 0:00:28]} 50. f3 {[%emt 0:00:34]} Rxf3+ {[%emt 0:00:13]} 51. Ke4 {[%emt 0:00:14]} Qd3# {[%emt 0:00:07] Gewichteter Fehlerwert: Weiß=0.35/Schwarz=0.19 (sehr präzise) .  Verlustzug:     	Weiß=2     	---        Gewinn verpasst:   	---       	Schwarz=1     Fehler:       	Weiß=3     	Schwarz=2     Ungenau:       	Weiß=1     	Schwarz=2     OK:         	Weiß=14    	Schwarz=18    Bester:       	Weiß=6     	Schwarz=5     Stark:        	Weiß=1     	Schwarz=3} 0-1